[Event "87th Tata Steel Challengers 2025"]
[Site "Wijk aan Zee"]
[Date "2025.01.25"]
[Round "7.1"]
[White "Svane, Frederik"]
[Black "Bulmaga, Irina"]
[Result "1-0"]
[Annotator "TA"]
[ECO "C50"]
[WhiteElo "2664"]
[BlackElo "2386"]
[PlyCount "181"]
[EventDate "2025.01.13"]
[EventType "tourn"]
[EventCountry "NED"]
[SourceTitle "playchess.com"]
[Source "ChessBase"]
[SourceQuality "1"]
[TimeControl "40/6000+30:20/3000+30:900+30"]

{[%evp 10,181,13,4,6,0,3,0,0,0,0,-6,41,22,72,18,39,34,42,35,46,28,41,24,25,19,0,0,39,43,45,41,34,27,147,158,161,158,172,150,278,272,273,169,135,138,150,155,155,151,215,74,151,165,159,158,162,161,160,133,143,132,143,129,136,140,188,168,185,192,191,145,182,187,179,177,170,152,191,211,342,345,396,387,482,452,552,414,302,0,548,574,532,0,0,0,173,150,165,195,102,131,175,0,172,0,195,166,117,61,76,33,33,73,58,0,45,0,64,69,139,176,170,0,0,0,188,208,194,187,172,0,0,0,65,73,42,84,201,235,288,360,353,245,333,260,347,339,344,337,232,190,213,159,167,178,172,102,97,121,279,0,70,0,346,327,304,250,29984,29986,29985,29986,29985,29981]} 1. e4 {[%emt 0:00:02]} e5 {[%emt 0:00:08]} 2. Nf3 {[%emt 0:00:05]} Nc6 {[%emt 0:00:06]} 3. Bc4 {[%emt 0:00:04]} Bc5 {[%emt 0:00:10]} 4. d3 {[%emt 0:00:09]} Nf6 {[%emt 0:00:18]} 5. Nc3 {[%emt 0:00:05]} h6 {[%emt 0:00:23]} 6. h3 {[%emt 0:00:17]} a6 {[%emt 0:00:39] is currently scoring better than 6...d6. C50: Hungarian Defence and Giuoco Pianissimo.} 7. Be3 {[%emt 0:00:22]} Bxe3 {[%emt 0:00:27]} 8. fxe3 {[%emt 0:00:05]} d6 {[%emt 0:00:18] The position is equal.} 9. a3 {[%emt 0:00:11]} Be6 {[%emt 0:00:36]} 10. Nd2 $5 {[%emt 0:00:04][%mdl 4] Exploring less charted territory.} O-O {[%emt 0:05:15]} (10... Bxc4 $11 {should be considered.} 11. dxc4 Ne7) 11. Qe2 {[%emt 0:02:41]} Re8 $146 {[%emt 0:11:03]} (11... Bd7 $11) (11... Bxc4 12. dxc4 Nb8 13. g4 Ne8 14. h4 g6 15. O-O-O Nd7 16. h5 g5 17. Nf1 Ng7 {1-0 Kollars,D (2648)-Dominguez Perez,L (2748) Chess.com Classic Div 2 W rapid 2024 (1.1)}) 12. Rf1 {[%emt 0:24:43]} (12. Bxe6 $16 Rxe6 13. Rf1) 12... Nb8 {[%emt 0:07:54]} 13. O-O-O {[%emt 0:02:53]} Bxc4 {[%emt 0:08:16]} 14. dxc4 {[%emt 0:01:50]} Nbd7 {[%emt 0:07:05]} 15. g4 {[%emt 0:01:19]} Nh7 {[%emt 0:01:50]} 16. Rf2 {[%emt 0:04:35]} Nc5 {[%emt 0:04:30]} 17. Rh1 {[%emt 0:03:10]} c6 {[%emt 0:00:54]} 18. h4 {[%emt 0:00:07][%cal Og4g5]} Ne6 {[%emt 0:01:10] [#]} 19. g5 $1 {[%emt 0:26:54]} hxg5 {[%emt 0:02:06] Space Advantage White} 20. Qh5 {[%emt 0:09:04]} g6 {[%emt 0:07:09]} 21. Qh6 {[%emt 0:01:25][%cal Of2f7]} Nef8 {[%emt 0:13:22]} (21... gxh4 $1 $11 {keeps the balance.} 22. Rxh4 Nef8) 22. Rhf1 $1 $16 {[%emt 0:06:39] White is much more active.} f6 {[%emt 0:03:40]} 23. hxg5 {[%emt 0:00:33]} (23. h5 gxh5 24. Qxh5 Re7) 23... Re6 {[%emt 0:01:23]} 24. Nf3 $1 {[%emt 0:17:21][%cal Bd2f3,Bf3h2,Bh2g4][%mdl 32]} Qe7 {[%emt 0:01:29] [#]} (24... Qd7 $16 25. gxf6 Rxf6) 25. Nd5 $1 $18 {[%emt 0:02:49][%mdl 512]} Qf7 {[%emt 0:03:14]} (25... cxd5 26. cxd5 Qg7 27. Qxg7+ (27. dxe6 Qxh6 28. gxh6 Re8 $18) 27... Kxg7 28. dxe6 $18) 26. Nh2 {[%emt 0:03:59]} cxd5 27. cxd5 {[%emt 0:00:00]} Re7 {[%emt 0:08:37]} 28. Ng4 $1 {[%emt 0:00:01][%cal Rf2f6]} (28. gxf6 Rc7 $14) 28... Rc7 {[%emt 0:05:08]} 29. Qh4 {[%emt 0:01:50]} (29. gxf6 $6 Kh8 $14) (29. Nxf6+ Nxf6 30. gxf6 (30. Rxf6 Qg7 $11) 30... Qh7 $11) 29... Qe8 {[%emt 0:05:32]} (29... Qd7 $16) 30. gxf6 {[%emt 0:01:12]} (30. Nxf6+ Nxf6 31. Rxf6 (31. gxf6 Rh7 $17) 31... Qe7 $11) (30. Rh1 $1 $18 {and the rest is easy.} Kh8 (30... fxg5 $2 31. Nf6+ Kh8 32. Nxe8 $18) 31. Nxf6 (31. Rxf6 Qe7 $16)) 30... Kh8 {[%emt 0:00:50]} (30... Rf7 $142) 31. f7 $16 {[%emt 0:00:05]} Qd8 {[%emt 0:00:47]} 32. Qh3 {[%emt 0:01:23] The board is on fire.} (32. Rf6 Rxf7 33. Rh1 Qc7 $17) 32... Qg5 {[%emt 0:04:41]} 33. Nf6 {[%emt 0:00:31]} Rxf7 {[%emt 0:01:05]} 34. Nxh7 {[%emt 0:00:29]} Rxh7 {[%emt 0:00:39]} 35. Rxf8+ {[%emt 0:00:01]} Rxf8 {[%emt 0:00:15]} 36. Rxf8+ $18 {[%emt 0:00:02][%mdl 4096] Endgame KQR-KQR. White is a pawn up. White attacks} Kg7 {[%emt 0:00:06]} 37. Qf3 $40 {[%emt 0:00:54][%mdl 128] White goes for the king.} Rh1+ {[%emt 0:03:26]} (37... Qe7 $16 {was called for.} 38. Ra8 Rh8 39. Rxh8 Kxh8) 38. Kd2 $1 {[%emt 0:00:48]} (38. Qxh1 Qxe3+ 39. Kb1 Kxf8 $16) 38... Rh2+ {[%emt 0:00:08]} 39. Kd3 $1 {[%emt 0:00:21]} Qe7 {[%emt 0:00:31] Inhibits Qf7+.} 40. Rc8 {[%emt 0:00:11]} Rh8 {[%emt 0:03:21]} 41. Rxh8 {[%emt 0:50:24]} Kxh8 {[%emt 0:02:01] KQ-KQ. White is a pawn up.} 42. Qh3+ {[%emt 0:00:00]} Kg7 {[%emt 0:03:41]} 43. Qc8 {[%emt 0:00:00] Prevents Qe8} Kh6 {[%emt 0:07:17]} 44. b4 {[%emt 0:00:00]} Kg7 {[%emt 0:08:17]} (44... Kg5 $142 45. Kd2 Qg7) 45. a4 {[%emt 0:00:00][%cal Ba3a4,Ba4a5][%mdl 32]} Qf7 {[%emt 0:01:44]} 46. Ke2 {[%emt 0:00:00]} Qe7 {[%emt 0:02:13]} 47. a5 {[%emt 0:00:00]} Kh7 {[%emt 0:01:56]} 48. Kd3 {[%emt 0:00:00]} Qf7 {[%emt 0:01:10]} 49. Ke2 {[%emt 0:00:00] Wards off Qf1+} (49. Kc3) 49... Qe7 $1 {[%emt 0:00:16]} 50. c4 {[%emt 0:00:00]} Qh4 {[%emt 0:04:06]} 51. Qc7+ $2 {[%emt 0:00:00]} (51. Qxb7+ $18 Kh6 52. Qxa6) 51... Kh6 $11 {[%emt 0:01:10]} 52. Qxd6 {[%emt 0:00:00]} Qh2+ {[%emt 0:04:54]} (52... Qg4+ $1 $11 {and Black has nothing to worry.} 53. Kd2 Qg2+ 54. Kc3 Qf1) 53. Kd3 $18 {[%emt 0:00:00]} Qf2 {[%emt 0:00:38] Against Qf8+} 54. Qxe5 {[%emt 0:00:00]} Qf1+ {[%emt 0:00:12]} 55. Kd2 {[%emt 0:00:03]} Qf2+ {[%emt 0:00:19]} 56. Kd3 {[%emt 0:00:04]} Qf1+ {[%emt 0:00:07]} 57. Kd2 {[%emt 0:00:59]} Qf2+ {[%emt 0:00:08]} 58. Kd1 $1 {[%emt 0:00:01]} Qf1+ {[%emt 0:00:27]} 59. Kc2 $1 {[%emt 0:00:05]} (59. Kd2 Qf2+ $18) 59... Qe2+ $1 {[%emt 0:00:22]} 60. Kb3 {[%emt 0:00:39]} Qd1+ {[%emt 0:00:19]} 61. Kb2 {[%emt 0:15:07]} Qd2+ {[%emt 0:15:19]} 62. Kb3 {[%emt 0:00:26]} Qd1+ {[%emt 0:00:08]} 63. Kb2 {[%emt 0:00:11]} Qd2+ {[%emt 0:00:07]} 64. Ka3 {[%emt 0:00:08]} Qd3+ {[%emt 0:00:13]} 65. Ka2 $1 {[%emt 0:00:17]} Qc2+ {[%emt 0:08:56]} 66. Ka3 {[%emt 0:00:07]} Qd3+ $1 {[%emt 0:00:04]} 67. Ka2 {[%emt 0:00:02]} Qc2+ $1 {[%emt 0:00:06]} 68. Qb2 $1 {[%emt 0:00:25]} (68. Ka3 $6 Qd3+ $16) 68... Qa4+ {[%emt 0:00:20]} (68... Qxc4+ 69. Ka3 Qd3+ 70. Qb3) 69. Kb1 {[%emt 0:00:01]} (69. Qa3 $6 Qc2+ 70. Qb2 Qa4+ (70... Qxc4+ 71. Ka1 $14) 71. Kb1 Qd1+ 72. Ka2 Qa4+ $14) 69... Qd1+ {[%emt 0:00:10]} 70. Ka2 $2 {[%emt 0:00:17]} (70. Qc1 $1 $18 {[%cal Rc1d1]} Qb3+ 71. Ka1 (71. Qb2 Qd1+ 72. Ka2 Qa4+ 73. Qa3 Qc2+ 74. Ka1 Qd1+ 75. Kb2 Qe2+ 76. Kb1 Qd1+ 77. Qc1 Qb3+ 78. Ka1 Qa4+ 79. Kb2 Qxb4+ 80. Kc2 Qxc4+ 81. Kd2 Qxe4 $14) 71... Qa4+ 72. Kb2 Qxb4+ 73. Kc2 Qxc4+ 74. Kd2 Qxe4 75. Qc5) 70... Qa4+ $11 {[%emt 0:00:02]} 71. Kb1 {[%emt 0:00:16]} (71. Qa3 $11 Qc2+ 72. Qb2 Qa4+ (72... Qxc4+ $2 73. Ka1 $18)) 71... Qd1+ $14 {[%emt 0:00:02]} 72. Qc1 $1 {[%emt 0:00:24]} Qb3+ {[%emt 0:00:14]} 73. Ka1 {[%emt 0:00:50]} Qa4+ {[%emt 0:00:16]} (73... Qxb4 $16 74. Qb2 Qxa5+ 75. Kb1 Qe1+ 76. Kc2 Qe2+ 77. Kb3 Qxe3+ 78. Qc3 Qxe4) 74. Kb2 $1 $18 {[%emt 0:00:22]} Qxb4+ {[%emt 0:00:03]} 75. Kc2 $1 {[%emt 0:00:06]} Qxc4+ {[%emt 0:00:19] [#]} 76. Kd2 $1 {[%emt 0:00:08]} Qxe4 {[%emt 0:00:08]} 77. Qc5 {[%emt 0:00:17]} Qf5 {[%emt 0:03:43]} 78. Qd4 {[%emt 0:01:32]} Qf2+ {[%emt 0:00:31] [#]} 79. Kc3 $1 {[%emt 0:00:31]} Qe1+ {[%emt 0:00:47]} 80. Qd2 {[%emt 0:01:01]} Qa1+ {[%emt 0:00:27]} 81. Kb4 {[%emt 0:03:52]} Qb1+ {[%emt 0:00:24]} 82. Kc5 {[%emt 0:00:46]} b6+ {[%emt 0:00:46]} 83. Kd4 {[%emt 0:06:43]} (83. axb6 Qb5+ 84. Kd6 Qxb6+ 85. Kd7 Qb7+ 86. Kd8 Qb8+ 87. Kd7 Qb7+ 88. Kd8 Qb8+ 89. Kd7 Qb7+ $14) (83. Kc6 $18 Qb5+ 84. Kc7 Qc5+ 85. Kd7 bxa5 86. e4+ Kh7 87. d6) 83... Qa1+ $16 {[%emt 0:01:39]} 84. Ke4 {[%emt 0:00:33]} Qb1+ $2 {[%emt 0:02:30]} (84... bxa5 $16 85. d6 Qa4+ 86. Qd4 Qd7) 85. Kd4 $2 {[%emt 0:00:20]} ({White should play} 85. Ke5 $18) 85... Qa1+ $14 {[%emt 0:01:54]} 86. Ke4 $2 {[%emt 0:00:01][%mdl 8192]} (86. Qc3 $1 $14 Qa4+ (86... Qxc3+ $2 87. Kxc3 bxa5 88. d6 $18) 87. Qc4 Qd1+ (87... Qxc4+ $2 88. Kxc4 b5+ 89. Kc5 $18) 88. Ke5 Qh5+ 89. Ke6 Qf5+ 90. Ke7 Qe5+ 91. Kd7) 86... Qb1+ $1 $18 {[%emt 0:00:06]} 87. Ke5 {[%emt 0:00:05] and e4+ would now be decisive} Qf5+ {[%emt 0:00:43]} 88. Kd6 {[%emt 0:00:02] White wants to mate with e4+.} bxa5 $2 {[%emt 0:00:38]} (88... Qf6+ $18 89. Kc7 Qe7+ 90. Kxb6 Qd6+ 91. Ka7 g5) 89. e4+ {[%emt 0:00:26] White mates.} Qg5 {[%emt 0:00:13]} 90. Qxg5+ {[%emt 0:00:05]} ({Worse is} 90. Qxa5 Qf6+ 91. Kd7 Qf7+ 92. Kc6 Qe8+ 93. Kb6 Qd8+ 94. Kxa6 Qa8+ 95. Kb5 Qe8+ 96. Kc5 Qxe4 $14) 90... Kxg5 {[%emt 0:00:05]} 91. Kc7 {[%emt 0:00:12] Weighted Error Value: White=0.28 (precise) /Black=0.24 (precise)   Loses game:     	---       	Black=1      Missed win:     	White=3     	---        Mistake:       	White=6     	Black=11     Inaccurate:     	White=2     	Black=2      OK:         	White=20    	Black=34     Best:        	White=17    	Black=15     Strong:       	White=12    	Black=5      Brilliant:      	White=1     	---} 1-0

[Event "87th Tata Steel Challengers 2025"]
[Site "Wijk aan Zee"]
[Date "2025.01.25"]
[Round "7.2"]
[White "Lu, Miaoyi"]
[Black "Deshmukh, Divya"]
[Result "1-0"]
[Annotator "TA"]
[ECO "B31"]
[WhiteElo "2429"]
[BlackElo "2490"]
[PlyCount "79"]
[EventDate "2025.01.13"]
[EventType "tourn"]
[EventCountry "NED"]
[SourceTitle "playchess.com"]
[Source "ChessBase"]
[SourceQuality "1"]
[TimeControl "40/6000+30:20/3000+30:900+30"]

{[%evp 20,79,8,12,18,-7,11,0,54,0,66,72,71,59,78,68,86,80,96,71,82,75,100,89,102,94,143,128,131,124,100,77,80,74,65,43,100,36,37,29,106,62,118,115,183,175,511,497,625,633,593,505,1163,548,827,290,805,671,29959,6519,29994,29995]} 1. e4 {[%emt 0:00:01]} c5 {[%emt 0:00:04]} 2. Nf3 {[%emt 0:00:03]} Nc6 {[%emt 0:00:03]} 3. Bb5 {[%emt 0:00:17]} Nf6 {[%emt 0:00:05][%cal Bg8f6,Bf6d5,Bd5c7,Bc7e6][%mdl 32]} 4. e5 {[%emt 0:07:57]} Nd5 {[%emt 0:03:09]} 5. Nc3 {[%emt 0:00:03]} Nc7 {[%emt 0:00:59]} 6. Bxc6 {[%emt 0:00:02]} dxc6 {[%emt 0:00:11]} 7. d3 {[%emt 0:00:03]} g6 {[%emt 0:00:57]} 8. h3 {[%emt 0:01:37]} Bg7 {[%emt 0:00:17]} 9. O-O {[%emt 0:00:04]} O-O {[%emt 0:00:34]} 10. Re1 {[%emt 0:06:41]} Ne6 {[%emt 0:03:40]} 11. a4 $1 {[%emt 0:04:36][%mdl 4] is currently scoring better than 11.Ne4.} a5 {[%emt 0:00:57] B31: Sicilian: 2...Nc6 3 Bb5 g6.} 12. Ne2 {[%emt 0:02:55]} b6 {[%emt 0:04:57]} 13. Nf4 {[%emt 0:00:49]} Ra7 {[%emt 0:10:09]} ({Black should play} 13... Nd4 $11) 14. b3 {[%emt 0:12:20]} (14. Nxe6 $14 Bxe6 15. b3) 14... h6 {[%emt 0:01:47]} (14... Nd4 $11) 15. Nxe6 $14 {[%emt 0:03:41]} Bxe6 {[%emt 0:00:08]} 16. Bb2 {[%emt 0:00:03]} Qc8 {[%emt 0:09:55]} 17. Qe2 {[%emt 0:01:13]} Rd8 $146 {[%emt 0:00:30]} (17... Bd5 18. Nd2 Kh7 19. Rad1 Rb7 20. c4 Be6 21. Nf3 Re8 22. d4 cxd4 23. Nxd4 Rd8 24. Nxe6 Rxd1 {½-½ Gholami,A (2541)-Ameir,M (2342) Mumbai Wealth op 5th 2019 (7)}) 18. Bc3 {[%emt 0:17:10]} Rad7 {[%emt 0:01:00]} 19. Nh2 {[%emt 0:05:27]} Rd5 {[%emt 0:20:37]} 20. f4 {[%emt 0:02:09]} h5 {[%emt 0:03:08]} 21. Nf1 {[%emt 0:05:31]} Bh6 {[%emt 0:07:04]} 22. Qf2 {[%emt 0:07:48]} Rf8 {[%emt 0:08:18]} (22... R5d7 $142) 23. Ne3 $16 {[%emt 0:04:43]} Rdd8 {[%emt 0:00:08]} 24. Qh4 {[%emt 0:00:45]} Rde8 {[%emt 0:01:08]} 25. Rf1 {[%emt 0:09:04]} f5 {[%emt 0:02:57]} 26. exf6 {[%emt 0:02:05] White attacks White is more active.} exf6 {[%emt 0:00:04]} 27. g4 {[%emt 0:10:43]} Qc7 {[%emt 0:07:13]} (27... Bxb3 $6 28. Rae1 $18) (27... Qd7 $1 $14) 28. Ng2 {[%emt 0:03:07]} (28. Bxf6 Bxf4 29. Rae1 Bxb3 30. cxb3 Bxe3+ (30... Rxe3 $2 31. Rxe3 Bxe3+ 32. Kg2 $19) 31. Kg2 Qd7 32. gxh5 Qd5+ 33. Kh2 (33. Rf3 $2 Bg5 $19) 33... g5 $19 (33... gxh5 $2 34. Qg3+ $18)) ({Better is} 28. gxh5 $16 g5 29. Qg3) 28... Bd5 $1 $14 {[%emt 0:00:16]} 29. gxh5 {[%emt 0:02:59]} (29. Bxf6 $2 Bxg2 30. Rf2 (30. Kxg2 $2 Re2+ 31. Rf2 Rxf2+ 32. Qxf2 Rxf6 $19) 30... Bg7 31. Bxg7 Qxg7 $19) 29... g5 {[%emt 0:07:20]} (29... gxh5 $11 {keeps the balance.} 30. Rf2 (30. Bxf6 $2 Rxf6 31. Qxf6 Re6 $19) (30. Qxh5 Qg7 $16) 30... Qf7) 30. Qg3 {[%emt 0:00:45] Rae1 would now be deadly.} Kh7 {[%emt 0:01:15] [#]} (30... Rf7 $1 $14 31. Rfe1 Rd8) 31. Rae1 $1 $16 {[%emt 0:00:12]} Rxe1 {[%emt 0:00:26]} (31... f5 $16 32. Rxe8 Rxe8) 32. Rxe1 $18 {[%emt 0:00:03]} (32. Bxe1 Rg8 33. f5 Qxg3 34. Bxg3 g4 $15) 32... Rg8 $2 {[%emt 0:00:38]} (32... b5 {is more resistant.} 33. Kh2 b4) 33. Qg4 {[%emt 0:00:45] Threatening mate with Qf5+.} (33. Bxf6 gxf4 34. Re7+ Qxe7 $11) 33... Rf8 {[%emt 0:13:03]} 34. Qf5+ {[%emt 0:00:01]} Kg8 {[%emt 0:00:01]} 35. Bxf6 {[%emt 0:00:11]} Qf7 {[%emt 0:04:24]} (35... Bg7 $142 36. fxg5 Bxg2 37. Kxg2 Qf7) 36. fxg5 {[%emt 0:00:09]} (36. Re7 $142 Qxe7 37. Qg6+ (37. fxg5 $2 Qf7 $19) 37... Qg7 38. Bxg7 Bxg7 39. h6 (39. fxg5 Kh8 $18) (39. Qxg5 Kh7 $18)) 36... Bg7 {[%emt 0:00:10]} 37. Nf4 $2 {[%emt 0:01:58] [#]} ({And not} 37. Re7 Qxe7 $17) (37. Qg4) 37... Bf3 $2 {[%emt 0:00:30]} (37... Bxf6 38. gxf6 (38. Qxf6 Qxf6 39. gxf6 Rxf6 $18) 38... Qxf6 39. Qxf6 Rxf6) 38. Ne6 {[%emt 0:00:52][%cal Oe6f8]} ({Don't blunder} 38. Re7 $2 Qxe7 39. Kf2 Bd1 $19 (39... Bxf6 40. gxf6 Qxf6 41. Qxf6 $15)) 38... Qxh5 {[%emt 0:00:02]} 39. Nxf8 {[%emt 0:00:29]} Qh4 {[%emt 0:00:23]} 40. Qe6+ {[%emt 0:00:08] Weighted Error Value: White=0.54/Black=1.37  Mistake:       	White=3     	Black=9      Inaccurate:     	White=1     	Black=2      OK:         	White=7     	Black=3      Best:        	White=2     	---        Strong:       	White=1     	Black=1} 1-0

[Event "87th Tata Steel Challengers 2025"]
[Site "Wijk aan Zee"]
[Date "2025.01.25"]
[Round "7.3"]
[White "Oro, Faustino"]
[Black "Nguyen, Thai Dai Van"]
[Result "0-1"]
[Annotator "TA"]
[ECO "B23"]
[WhiteElo "2447"]
[BlackElo "2668"]
[PlyCount "100"]
[EventDate "2025.01.13"]
[EventType "tourn"]
[EventCountry "NED"]
[SourceTitle "playchess.com"]
[Source "ChessBase"]
[SourceQuality "1"]
[TimeControl "40/6000+30:20/3000+30:900+30"]

{[%evp 9,100,0,0,0,14,15,16,9,16,10,15,15,29,25,33,0,0,7,19,12,50,0,0,0,0,0,0,-8,-8,-8,0,0,0,0,0,2,0,-44,-44,-118,-120,-125,-119,-126,-125,-143,-116,-157,-141,-139,-138,-137,-133,-172,-182,-177,-173,-194,-174,-188,0,-184,0,-185,-181,-195,-192,-191,-191,-195,-195,-216,-210,-229,-218,-221,-224,-287,-173,-172,-174,-185,-179,-168,-170,-240,-242,-247,-247,-250,-250,-257,-257]} 1. e4 {[%emt 0:00:02]} c5 {[%emt 0:00:10]} 2. Nc3 {[%emt 0:00:06]} Nc6 {[%emt 0:00:33]} 3. Bb5 {[%emt 0:00:05]} Nd4 {[%emt 0:00:48]} 4. Bc4 {[%emt 0:00:14]} a6 {[%emt 0:01:46]} 5. a4 {[%emt 0:00:22]} e6 {[%emt 0:02:26]} 6. Nge2 {[%emt 0:00:06] B23: Closed Sicilian: Lines without g3.} Ne7 {[%emt 0:06:53]} 7. Nxd4 {[%emt 0:01:49]} cxd4 {[%emt 0:00:12]} 8. Ne2 {[%emt 0:00:05] The position is equal.} Nc6 {[%emt 0:01:23]} 9. O-O {[%emt 0:00:26]} Bc5 {[%emt 0:27:58]} 10. d3 {[%emt 0:01:30]} O-O {[%emt 0:00:49]} 11. Ng3 {[%emt 0:01:59]} b6 $146 {[%emt 0:11:13]} (11... d5 12. exd5 exd5 13. Bb3 Be6 14. Qh5 Qd7 15. f4 f5 16. Bd2 Rf6 17. a5 Bf7 {0-1 Bauer,T (2151)-Samani,Y (2357) EU-ch 23rd Vrnjacka Banja 2023 (5)}) 12. Qh5 {[%emt 0:04:14]} g6 {[%emt 0:09:29]} 13. Qe2 {[%emt 0:05:12]} d5 {[%emt 0:11:46]} 14. Bb3 {[%emt 0:03:40]} Re8 {[%emt 0:00:16]} 15. Re1 {[%emt 0:05:20]} (15. exd5 $14 exd5 16. Bg5) 15... Bb7 $11 {[%emt 0:02:47]} 16. Bd2 {[%emt 0:03:21]} dxe4 {[%emt 0:02:15]} 17. Nxe4 {[%emt 0:01:00]} Be7 {[%emt 0:00:05]} 18. Qf3 {[%emt 0:14:19]} Rc8 {[%emt 0:01:08]} 19. Rac1 {[%emt 0:01:30]} Ba8 {[%emt 0:01:39]} 20. Qg3 {[%emt 0:05:24]} Na5 {[%emt 0:03:27]} 21. Ba2 {[%emt 0:01:35]} Qd7 {[%emt 0:05:16]} 22. Qe5 {[%emt 0:22:31] [#] Hoping for Bh6.} Bxe4 {[%emt 0:00:22]} 23. Qxe4 {[%emt 0:00:24]} Qxa4 {[%emt 0:07:25]} 24. Bxa5 {[%emt 0:12:10]} ({But not} 24. Bxe6 fxe6 25. Qxe6+ Kg7 26. Qxb6 Nc6 $17) (24. Ra1 $1 $15 Qd7 (24... Rxc2 25. Bxe6 Qb5 26. Bxa5 $11) (24... Qxc2 25. Bxe6 fxe6 26. Qxe6+ Kg7 27. Rac1 $11) 25. Qg4) 24... Qxa5 $17 {[%emt 0:00:24]} 25. Bb3 {[%emt 0:00:13][%cal Oc1a1]} Qc5 {[%emt 0:01:15] Black is more active.} 26. Ra1 {[%emt 0:02:45]} a5 {[%emt 0:00:42]} 27. Ra4 {[%emt 0:00:14]} Bf6 {[%emt 0:01:12]} 28. g3 {[%emt 0:01:39]} Qd6 {[%emt 0:01:51]} 29. Rea1 {[%emt 0:01:45]} Rc5 {[%emt 0:01:32] White is weak on the dark squares} 30. Rc4 {[%emt 0:01:16]} Rxc4 {[%emt 0:01:34]} 31. Bxc4 {[%emt 0:00:11]} Rb8 {[%emt 0:00:45]} 32. Bb3 {[%emt 0:01:22]} Qc7 {[%emt 0:00:13]} 33. Qe1 {[%emt 0:01:21]} Be7 {[%emt 0:01:46]} 34. Qe4 {[%emt 0:04:48]} Bf6 {[%emt 0:00:01]} 35. Qe1 $1 {[%emt 0:00:34]} Be7 {[%emt 0:00:01]} 36. Qe4 {[%emt 0:00:01]} b5 {[%emt 0:04:16]} 37. Rc1 {[%emt 0:02:48]} a4 {[%emt 0:00:15]} 38. Ba2 Bg5 {[%emt 0:00:59]} 39. Re1 {[%emt 0:00:42]} Bf6 {[%emt 0:00:39]} (39... Qxc2 40. Qe5 Rf8 41. Qxg5 Qxb2 (41... Qxd3 $2 {too greedy.} 42. Rxe6 a3 43. Rb6 $18) 42. Bb1) 40. Qe2 {[%emt 0:00:35]} Rc8 {[%emt 0:01:46]} 41. Rc1 {[%emt 0:51:47]} Bg5 {[%emt 0:04:29]} 42. f4 {[%emt 0:00:00]} Bf6 {[%emt 0:00:11]} 43. Qe4 {[%emt 0:00:00]} Qc6 {[%emt 0:03:54]} 44. Qxc6 {[%emt 0:00:00]} Rxc6 $19 {[%emt 0:01:30][%mdl 4096] Endgame KRB-KRB. Black is a pawn up.} 45. Kf1 {[%emt 0:00:00]} g5 {[%emt 0:07:20]} 46. Ke2 {[%emt 0:00:00]} Rc5 {[%emt 0:00:59]} 47. Kd2 {[%emt 0:00:00]} (47. Kf3 $142) 47... gxf4 {[%emt 0:01:06]} 48. gxf4 {[%emt 0:00:00]} Rf5 {[%emt 0:00:53]} 49. Rf1 {[%emt 0:00:00] [#]} Rxf4 $3 {[%emt 0:00:22][%mdl 512]} 50. Rxf4 {[%emt 0:00:00]} (50. Ke1 Bh4+) 50... Bg5 {[%emt 0:00:05] Weighted Error Value: White=0.12 (very precise) /Black=0.13 (very precise)   Mistake:       	White=3     	---        Inaccurate:     	White=3     	Black=2      OK:         	White=16    	Black=26     Best:        	White=2     	Black=3      Strong:       	White=1     	---} 0-1